fUST/lending_fUST_20241207
["ID","MTS","AMOUNT","RATE_DAILY","PERIOD"]
[344493493,1733512239624,-500.0,0.00030136,7]
[344493494,1733512239634,-500.0,0.00030136,7]
[344493495,1733512239644,-500.0,0.00030136,7]
[344493496,1733512239654,-500.0,0.00030136,7]
[344493497,1733512239664,-500.0,0.00030136,7]
[344493498,1733512239673,-500.0,0.00030136,7]
[344493499,1733512239682,-500.0,0.00030136,7]
[344493500,1733512239692,-500.0,0.00030136,7]
[344493501,1733512239701,-310.16548996,0.00030136,7]
[344493502,1733512239711,-500.0,0.00030136,7]
[344493503,1733512239721,-500.0,0.00030136,7]
[344493504,1733512239731,-500.0,0.00030136,7]
[344493505,1733512239740,-500.0,0.00030136,7]
[344493506,1733512239749,-500.0,0.00030136,7]
[344493507,1733512239758,-500.0,0.00030136,7]
[344493508,1733512239767,-500.0,0.00030136,7]
[344493509,1733512239777,-500.0,0.00030136,7]
[344493510,1733512239787,-214.18,0.00030136,7]
[344493511,1733512239796,-500.0,0.00030136,7]
[344493512,1733512239806,-164.32,0.00030136,7]
[344493513,1733512239819,-500.0,0.00030136,7]
[344493514,1733512239828,-7015.625,0.00030136,7]
[344493515,1733512239838,-7015.625,0.00030136,7]
[344493516,1733512239848,-735.33655,0.00030137,120]
[344493517,1733512239858,-500.0,0.00030173,5]
[344493518,1733512239867,-299.92,0.000304,2]
[344493519,1733512239877,-500.0,0.00030509,7]
[344493520,1733512239887,-500.0,0.00030509,7]
[344493521,1733512239896,-150.0,0.00030539,2]
[344493522,1733512239907,-500.0,0.00030549,5]
[344493523,1733512239917,-666.0,0.00030601,2]
[344493524,1733512239926,-2400.0,0.000307,10]
[344493525,1733512239936,-500.0,0.00030708,7]
[344493526,1733512239946,-500.0,0.00030708,7]
[344493527,1733512239956,-500.0,0.00030708,7]
[344493528,1733512239966,-500.0,0.00030708,7]
[344493529,1733512239976,-500.0,0.00030708,7]
[344493530,1733512239986,-500.0,0.00030708,7]
[344493531,1733512239996,-500.0,0.00030708,7]
[344493532,1733512240006,-500.0,0.00030708,7]
[344493533,1733512240016,-151.0,0.00030709,7]
[344493534,1733512240027,-151.0,0.00030709,7]
[344493535,1733512240037,-151.934126,0.00030709,7]
[344493536,1733512240047,-151.0,0.00030709,7]
[344493537,1733512240057,-151.0,0.00030709,7]
[344493538,1733512240072,-151.0,0.00030709,7]
[344493539,1733512240081,-151.0,0.00030709,7]
[344493540,1733512240091,-151.0,0.00030709,7]
[344493541,1733512240101,-173.361491,0.00030709,7]
[344493542,1733512240111,-151.0,0.00030709,7]
[344493543,1733512240120,-151.0,0.00030709,7]
[344493544,1733512240130,-151.0,0.00030709,7]
[344493545,1733512240140,-151.0,0.00030709,7]
[344493546,1733512240149,-151.0,0.00030709,7]
[344493547,1733512240159,-151.0,0.00030709,7]
[344493548,1733512240168,-151.0,0.00030709,7]
[344493549,1733512240179,-296.012728,0.00030709,7]
[344493550,1733512240189,-151.0,0.00030709,7]
[344493551,1733512240199,-151.0,0.00030709,7]
[344493552,1733512240208,-196.608489,0.00030709,7]
[344493553,1733512240217,-196.608489,0.00030709,7]
[344493554,1733512240227,-196.608489,0.00030709,7]
[344493555,1733512240237,-196.608489,0.00030709,7]
[344493556,1733512240247,-196.608489,0.00030709,7]
[344493558,1733512240257,-196.608489,0.00030709,7]
[344493559,1733512240267,-196.608489,0.00030709,7]
[344493561,1733512240277,-196.608489,0.00030709,7]
[344493562,1733512240286,-196.608489,0.00030709,7]
[344493563,1733512240296,-196.608489,0.00030709,7]
[344493564,1733512240306,-196.608489,0.00030709,7]
[344493565,1733512240318,-196.608489,0.00030709,7]
[344493566,1733512240328,-196.608489,0.00030709,7]
[344493567,1733512240337,-196.608489,0.00030709,7]
[344493568,1733512240347,-196.608489,0.00030709,7]
[344493569,1733512240357,-196.608489,0.00030709,7]
[344493570,1733512240367,-196.608489,0.00030709,7]
[344493571,1733512240377,-196.608489,0.00030709,7]
[344493572,1733512240388,-196.608489,0.00030709,7]
[344493573,1733512240399,-196.608491,0.00030709,7]
[344493574,1733512240409,-151.0,0.00030709,7]
[344493576,1733512240420,-151.0,0.00030709,7]
[344493578,1733512240430,-155.11683,0.00030709,7]
[344493580,1733512240440,-151.0,0.00030709,7]
[344493582,1733512240449,-151.0,0.00030709,7]
[344493583,1733512240459,-151.0,0.00030709,7]
[344493584,1733512240472,-151.0,0.00030709,7]
[344493585,1733512240483,-151.0,0.00030709,7]
[344493586,1733512240493,-151.0,0.00030709,7]
[344493587,1733512240503,-151.0,0.00030709,7]
[344493588,1733512240514,-151.0,0.00030709,7]
[344493589,1733512240525,-151.0,0.00030709,7]
[344493590,1733512240536,-151.0,0.00030709,7]
[344493591,1733512240545,-151.0,0.00030709,7]
[344493592,1733512240556,-151.0,0.00030709,7]
[344493594,1733512240570,-151.0,0.00030709,7]
[344493596,1733512240581,-151.0,0.00030709,7]
[344493597,1733512240591,-151.0,0.00030709,7]
[344493598,1733512240719,-283.088601,0.00030709,7]
[344493599,1733512240729,-151.0,0.0003071,7]
[344493600,1733512240740,-151.0,0.0003071,7]
[344493601,1733512240749,-151.0,0.0003071,7]
[344493602,1733512240759,-151.0,0.0003071,7]
[344493603,1733512240769,-151.624814,0.0003071,7]
[344493604,1733512240778,-151.0,0.0003071,7]
[344493605,1733512240790,-151.0,0.0003071,7]
[344493606,1733512240800,-151.0,0.0003071,7]
[344493607,1733512240809,-151.0,0.0003071,7]
[344493608,1733512240823,-224.203823,0.0003071,7]
[344493609,1733512240833,-151.0,0.0003071,7]
[344493610,1733512240844,-151.0,0.0003071,7]
[344493611,1733512240853,-151.0,0.0003071,7]
[344493612,1733512240863,-151.0,0.0003071,7]
[344493613,1733512240872,-151.0,0.0003071,7]
[344493614,1733512240881,-151.0,0.0003071,7]
[344493615,1733512240891,-151.0,0.0003071,7]
[344493616,1733512240900,-151.0,0.0003071,7]
[344493617,1733512240910,-151.0,0.0003071,7]
[344493618,1733512240920,-151.0,0.0003071,7]
[344493619,1733512240931,-151.0,0.0003071,7]
[344493620,1733512240940,-151.0,0.0003071,7]
[344493621,1733512240950,-151.0,0.0003071,7]
[344493622,1733512240959,-151.0,0.0003071,7]
[344493623,1733512240969,-151.0,0.0003071,7]
[344493624,1733512240981,-151.0,0.0003071,7]
[344493625,1733512240992,-198.56175,0.0003071,7]
[344493626,1733512241002,-150.09,0.0003071,10]
[344493627,1733512241011,-500.0,0.0003071,7]
[344493628,1733512241020,-302.50563042,0.0003071,7]
[344493629,1733512241030,-500.0,0.0003071,7]
[344493630,1733512241041,-500.0,0.0003071,7]
[344493631,1733512241051,-486.40929555,0.0003071,7]
[344493632,1733512241061,-150.09,0.0003071,10]
[344493633,1733512241073,-199.82,0.0003071,10]
[344493634,1733512241082,-152.66641748,0.0003071,10]
[344493635,1733512241092,-214.03658332,0.0003071,10]
[344493636,1733512241101,-222.19664615,0.0003071,2]
[344493637,1733512241110,-298.26558036,0.0003071,2]
[344493638,1733512241120,-27720.1541015,0.00030711,2]
[344493686,1733512244198,-781.62375334,0.00030036,2]
[344493687,1733512244208,-1467.950602,0.000305,3]
[344493688,1733512244218,-2731.66103476,0.00030711,2]
[344493689,1733512244282,-13379.56526746,0.00030711,2]
[344493690,1733512244291,-982.1190851,0.00030711,2]
[344493691,1733512244301,-34910.43121173,0.00030711,10]
[344493711,1733512246872,-135474.09955,0.00030711,10]
[344493714,1733512247055,-3032.15917886,0.00030711,10]
[344493715,1733512247067,-300000.0,0.00030711,10]
[344493716,1733512247081,-1475.50541,0.00030711,10]
[344493717,1733512561823,212.168356,0.00013973,2]
[344493719,1733512740561,551.502412,0.00030137,120]
[344493721,1733513029523,633.8053869,0.0001,2]
[344493722,1733513235129,-212.168356,0.00020447,2]
[344493723,1733513235151,-215.83947139,0.000219,2]
[344493725,1733513317822,1074.97566102,0.0001999,2]
[344493728,1733513319499,433.36,0.0003,120]
[344493729,1733513319521,6003.61864461,0.0003,120]
[344493730,1733513355124,-174.05426474,0.000218,2]
[344493731,1733513355145,-158.0,0.00022,2]
[344493732,1733513355166,-300.0,0.00023737,2]
[344493733,1733513355187,-300.0,0.00023737,2]
[344493734,1733513355212,-1463.90539299,0.00023738,2]
[344493735,1733513363105,-19437.60149882,0.00023738,2]
[344493736,1733513363134,-3998.49310819,0.00023738,2]
[344493737,1733513363155,-254.751633,0.00024051,2]
[344493738,1733513363176,-707.06878855,0.000249,2]
[344493739,1733513363196,-425.28618058,0.000249,2]
[344493740,1733513363217,-1379.72150501,0.00025,7]
[344493741,1733513365097,-19989.70898139,0.00025,7]
[344493742,1733513369086,-154467.7060654,0.00025,7]
[344493743,1733513374822,413.626809,0.00030137,120]
[344493761,1733513432923,-271.27170966,0.00024899,2]
[344493763,1733513432933,-211.86570225,0.00024999,2]
[344493765,1733513432945,-88.13429775,0.00024999,2]
[344493767,1733513432954,-300.0,0.00024999,2]
[344493769,1733513432964,-281.94570229,0.00025,7]
[344493772,1733513432975,-301.3759876,0.00025,7]
[344493774,1733513432987,-6834.83921856,0.00025,7]
[344493894,1733513444030,-684.74293365,0.00025,7]
[344493907,1733513474826,207.842034,0.00013973,2]
[344493908,1733513475075,207.842034,0.00020447,2]
[344493910,1733513810470,200.0,0.00024658,15]
[344493911,1733513961031,315.16,0.00030711,120]
[344493912,1733514106068,1932.0,0.000307,120]
[344493913,1733514121270,0.49213439,0.000301,120]
[344493914,1733514121292,2282.05001546,0.000301,120]
[344493915,1733514121313,618.45785015,0.000301,120]
[344493916,1733514168502,217.806893,0.00013973,2]
[344493917,1733514343111,-217.806893,0.00020447,2]
[344493918,1733514343131,-184.55611,0.00022146,2]
[344493919,1733514343157,-161.4759354,0.00023152,2]
[344493920,1733514343178,-300.0,0.00023588,2]
[344493921,1733514343200,-300.0,0.00023588,2]
[344493922,1733514343223,-24900.0,0.00023589,2]
[344493923,1733514343242,-475.975192,0.00023716,2]
[344493924,1733514343270,-1055.3319946,0.00023926,2]
[344493925,1733514343293,-168.551212,0.00023956,2]
[344493926,1733514343315,-250.0,0.00023975,2]
[344493927,1733514343335,-768.12981248,0.000249,2]
[344493928,1733514343354,-8808.41094752,0.00025,7]
[344493929,1733514343374,-36470.62470601,0.00025,2]
[344493930,1733514343535,-400.0,0.00025,2]
[344493931,1733514343559,-420.0,0.00025591,2]
[344493932,1733514343581,-768.12981243,0.00025715,2]
[344493933,1733514343602,-184.271325,0.00025735,2]
[344493934,1733514343623,-420.0,0.00025947,2]
[344493935,1733514343643,-168.699536,0.00026073,2]
[344493936,1733514343663,-182.676157,0.00026301,2]
[344493937,1733514343683,-768.12981243,0.00026531,2]
[344493938,1733514343703,-217.806893,0.00026921,2]
[344493939,1733514343723,-182.676157,0.00027275,2]
[344493940,1733514343743,-768.12981243,0.00027346,2]
[344493941,1733514343761,-500.0,0.00027397,2]
[344493942,1733514343780,-534.51304499,0.000274,2]
[344493943,1733514343800,-587.0,0.00027764,2]
[344493944,1733514343822,-768.12981243,0.00028161,2]
[344493945,1733514343841,-182.676157,0.00028248,2]
[344493946,1733514343860,-246.83441214,0.00028455,2]
[344493947,1733514343884,-587.0,0.00028542,2]
[344493948,1733514343903,-500.0,0.00028767,5]
[344493949,1733514343923,-160.0,0.00028771,3]
[344493950,1733514343943,-768.12981243,0.00028976,2]
[344493951,1733514343962,-13162.77807431,0.00029,30]
[344493952,1733514343981,-220.12877861,0.00029073,2]
[344493953,1733514344001,-500.0,0.00029099,2]
[344493954,1733514344022,-500.0,0.00029099,2]
[344493955,1733514344042,-500.0,0.00029099,2]
[344493956,1733514344066,-350.98531195,0.00029099,2]
[344493957,1733514344084,-500.0,0.00029099,2]
[344493958,1733514344105,-500.0,0.00029099,2]
[344493959,1733514344126,-500.0,0.00029099,2]
[344493960,1733514344150,-500.0,0.00029099,2]
[344493961,1733514344173,-500.0,0.00029099,2]
[344493962,1733514344194,-500.0,0.00029099,2]
[344493963,1733514344215,-500.0,0.00029099,2]
[344493964,1733514344239,-500.0,0.00029099,2]
[344493965,1733514344258,-39248.53969484,0.000291,2]
[344493966,1733514438862,2882.29873452,0.0001802,10]
[344493967,1733514547105,-165.18018776,0.00023,2]
[344493968,1733514551250,-36.81981224,0.00023,2]
[344494033,1733514632263,-4452.29098941,0.0002721,2]
[344494066,1733514638135,-164.07210595,0.0002721,2]
[344494067,1733514638148,-20283.63690464,0.0002721,2]
[344494068,1733514638158,-250.0,0.00027274,2]
[344494069,1733514638167,-165.327916,0.00027311,2]
[344494070,1733514638177,-237.987596,0.00027335,2]
[344494071,1733514638186,-182.676157,0.00027417,2]
[344494072,1733514638196,-500.0,0.00029073,5]
[344494073,1733514638206,-300.0,0.00029099,2]
[344494074,1733514638215,-300.0,0.00029099,2]
[344494075,1733514638226,-68780.3862899,0.000291,2]
[344494076,1733514638238,-399.554,0.0002917,2]
[344494077,1733514638248,-192.0324531,0.00029511,2]
[344494078,1733514638258,-1099.3883589,0.00029621,5]
[344494079,1733514638268,-192.0324531,0.00029731,2]
[344494080,1733514638278,-192.0324531,0.00029952,2]
[344494081,1733514638288,-342.0,0.0003,2]
[344494082,1733514638298,-14193.06182397,0.0003,2]
[344494083,1733514638308,-154.85,0.0003,31]
[344494084,1733514638318,-157.42846395,0.00030038,2]
[344494085,1733514638327,-345.0,0.000301,14]
[344494086,1733514638336,-1000.0,0.000301,2]
[344494087,1733514638346,-500.0,0.00030136,7]
[344494088,1733514638355,-500.0,0.00030136,7]
[344494089,1733514638365,-255.09837712,0.00030136,7]
[344494090,1733514638375,-500.0,0.00030136,7]
[344494091,1733514638384,-464.87189845,0.00030136,7]
[344494109,1733514640013,-35.12810155,0.00030136,7]
[344494110,1733514640023,-469.17872671,0.00030136,7]
[344494117,1733514644020,-30.82127329,0.00030136,7]
[344494118,1733514644030,-500.0,0.00030136,7]
[344494119,1733514644040,-249.38818551,0.00030136,7]
[344494120,1733514644049,-500.0,0.00030136,7]
[344494121,1733514644058,-500.0,0.00030136,7]
[344494122,1733514644068,-500.0,0.00030136,7]
[344494123,1733514644078,-528.6,0.00030136,7]
[344494124,1733514644087,-500.0,0.00030136,7]
[344494125,1733514644097,-500.0,0.00030136,7]
[344494126,1733514644106,-500.0,0.00030136,7]
[344494127,1733514644116,-500.0,0.00030136,7]
[344494128,1733514644126,-500.0,0.00030136,7]
[344494129,1733514644136,-188.35,0.00030136,7]
[344494130,1733514644147,-500.0,0.00030136,7]
[344494131,1733514644157,-500.0,0.00030136,7]
[344494132,1733514644167,-261.82539057,0.00030136,7]
[344494133,1733514644178,-310.220106,0.00030137,120]
[344494134,1733514644188,-192.0324531,0.00030172,2]
[344494135,1733514644198,-154.85,0.000302,31]
[344494136,1733514644207,-154.85,0.000302,31]
[344494137,1733514644217,-406.0196749,0.00030251,11]
[344494138,1733514644230,-192.0324531,0.00030393,2]
[344494139,1733514644240,-154.85,0.000304,31]
[344494140,1733514644250,-154.85,0.000304,31]
[344494141,1733514644264,-342.0,0.00030411,2]
[344494142,1733514644275,-309.47,0.000305,2]
[344494143,1733514644285,-154.85,0.000306,31]
[344494144,1733514644294,-154.85,0.000306,31]
[344494145,1733514644304,-1863.3279464,0.00030609,2]
[344494146,1733514644315,-4211.82,0.0003061,30]
[344494147,1733514644324,-192.0324531,0.00030613,2]
[344494148,1733514644334,-808.38106212,0.0003063,2]
[344494149,1733514644451,-5552.04625877,0.000307,10]
[344494150,1733514644463,-788.611752,0.000307,34]
[344494151,1733514644473,-483.44281244,0.00030706,2]
[344494152,1733514644483,-171.110314,0.00030707,7]
[344494153,1733514644493,-171.110314,0.00030707,7]
[344494154,1733514644503,-151.0,0.00030707,7]
[344494155,1733514644512,-151.0,0.00030707,7]
[344494156,1733514644521,-151.0,0.00030707,7]
[344494157,1733514644530,-151.0,0.00030707,7]
[344494158,1733514644540,-151.0,0.00030707,7]
[344494159,1733514644550,-151.0,0.00030707,7]
[344494160,1733514644560,-151.0,0.00030707,7]
[344494161,1733514644569,-151.0,0.00030707,7]
[344494162,1733514644580,-176.116466,0.00030707,7]
[344494163,1733514644590,-151.0,0.00030707,7]
[344494164,1733514644600,-151.0,0.00030707,7]
[344494165,1733514644609,-294.691706,0.00030707,7]
[344494166,1733514644619,-294.691706,0.00030707,7]
[344494167,1733514644629,-294.691706,0.00030707,7]
[344494168,1733514644638,-294.691706,0.00030707,7]
[344494169,1733514644648,-294.691706,0.00030707,7]
[344494170,1733514644658,-294.691706,0.00030707,7]
[344494171,1733514644667,-294.691706,0.00030707,7]
[344494172,1733514644677,-294.691706,0.00030707,7]
[344494173,1733514644686,-294.691706,0.00030707,7]
[344494174,1733514644695,-294.691706,0.00030707,7]
[344494175,1733514644705,-294.691706,0.00030707,7]
[344494176,1733514644714,-294.691706,0.00030707,7]
[344494177,1733514644724,-294.691706,0.00030707,7]
[344494178,1733514644734,-294.691706,0.00030707,7]
[344494179,1733514644743,-294.691706,0.00030707,7]
[344494180,1733514644752,-294.691706,0.00030707,7]
[344494181,1733514644762,-294.691706,0.00030707,7]
[344494182,1733514644772,-294.691706,0.00030707,7]
[344494183,1733514644781,-294.691706,0.00030707,7]
[344494184,1733514644791,-294.691715,0.00030707,7]
[344494185,1733514644800,-151.0,0.00030707,7]
[344494186,1733514644809,-152.795366,0.00030707,7]
[344494187,1733514644819,-151.0,0.00030707,7]
[344494188,1733514644831,-151.0,0.00030707,7]
[344494189,1733514644841,-151.0,0.00030707,7]
[344494190,1733514644850,-151.0,0.00030707,7]
[344494191,1733514644861,-151.0,0.00030707,7]
[344494192,1733514644871,-151.0,0.00030707,7]
[344494193,1733514644880,-151.0,0.00030707,7]
[344494194,1733514644890,-151.0,0.00030707,7]
[344494195,1733514644901,-174.802307,0.00030707,7]
[344494196,1733514644912,-151.0,0.00030707,7]
[344494197,1733514644921,-151.0,0.00030707,7]
[344494198,1733514644931,-151.0,0.00030707,7]
[344494199,1733514644941,-151.0,0.00030707,7]
[344494200,1733514644950,-151.0,0.00030707,7]
[344494201,1733514644961,-151.0,0.00030707,7]
[344494202,1733514644971,-151.0,0.00030707,7]
[344494203,1733514644982,-151.0,0.00030707,7]
[344494204,1733514644992,-151.0,0.00030707,7]
[344494205,1733514645006,-151.0,0.00030707,7]
[344494206,1733514645018,-151.0,0.00030707,7]
[344494207,1733514645027,-151.0,0.00030707,7]
[344494208,1733514645036,-151.0,0.00030707,7]
[344494209,1733514645045,-151.0,0.00030707,7]
[344494210,1733514645055,-151.0,0.00030707,7]
[344494211,1733514645064,-151.0,0.00030707,7]
[344494212,1733514645074,-151.0,0.00030707,7]
[344494213,1733514645084,-151.0,0.00030707,7]
[344494214,1733514645094,-151.0,0.00030707,7]
[344494215,1733514645105,-151.0,0.00030707,7]
[344494216,1733514645115,-151.0,0.00030707,7]
[344494217,1733514645125,-208.245704,0.00030707,7]
[344494218,1733514645134,-151.0,0.00030707,7]
[344494219,1733514645144,-272.734089,0.00030707,7]
[344494220,1733514645153,-151.0,0.00030707,7]
[344494221,1733514645163,-151.0,0.00030707,7]
[344494222,1733514645173,-151.0,0.00030707,7]
[344494223,1733514645183,-151.0,0.00030707,7]
[344494224,1733514645192,-151.0,0.00030707,7]
[344494225,1733514645203,-151.0,0.00030707,7]
[344494226,1733514645212,-151.0,0.00030707,7]
[344494227,1733514645222,-151.0,0.00030707,7]
[344494228,1733514645232,-151.0,0.00030707,7]
[344494229,1733514645244,-151.0,0.00030707,7]
[344494230,1733514645254,-151.0,0.00030707,7]
[344494231,1733514645264,-151.0,0.00030707,7]
[344494232,1733514645275,-151.0,0.00030707,7]
[344494233,1733514645286,-236.797528,0.00030707,7]
[344494234,1733514645295,-1124.0504,0.00030707,7]
[344494235,1733514645306,-1124.0504,0.00030707,7]
[344494236,1733514645316,-1124.0504,0.00030707,7]
[344494237,1733514645325,-1124.0504,0.00030707,7]
[344494238,1733514645335,-1124.0504,0.00030707,7]
[344494239,1733514645344,-1124.0504,0.00030707,7]
[344494240,1733514645354,-1124.0504,0.00030707,7]
[344494241,1733514645363,-1124.0504,0.00030707,7]
[344494242,1733514645373,-256.751325,0.00030707,7]
[344494243,1733514645383,-1124.0504,0.00030707,7]
[344494244,1733514645392,-1124.0504,0.00030707,7]
[344494245,1733514645402,-1124.0504,0.00030707,7]
[344494246,1733514645412,-1124.0504,0.00030707,7]
[344494247,1733514645420,-1124.0504,0.00030707,7]
[344494248,1733514645430,-1124.0504,0.00030707,7]
[344494249,1733514645439,-1124.0504,0.00030707,7]
[344494250,1733514645448,-1124.0504,0.00030707,7]
[344494252,1733514645458,-1124.0504,0.00030707,7]
[344494253,1733514645467,-1124.0504,0.00030707,7]
[344494255,1733514645476,-1124.0504,0.00030707,7]
[344494256,1733514645485,-1124.050402,0.00030707,7]
[344494257,1733514645495,-3486.627574,0.00030707,7]
[344494258,1733514645505,-3486.627574,0.00030707,7]
[344494259,1733514645514,-3486.627574,0.00030707,7]
[344494260,1733514645524,-3486.627574,0.00030707,7]
[344494261,1733514645534,-3486.627574,0.00030707,7]
[344494262,1733514645544,-3486.627574,0.00030707,7]
[344494263,1733514645553,-3486.627574,0.00030707,7]
[344494264,1733514645563,-3486.627574,0.00030707,7]
[344494265,1733514645573,-3486.627574,0.00030707,7]
[344494268,1733514645582,-3486.627574,0.00030707,7]
[344494269,1733514645592,-3486.627574,0.00030707,7]
[344494270,1733514645602,-3486.627574,0.00030707,7]
[344494271,1733514645611,-3486.627574,0.00030707,7]
[344494272,1733514645622,-3486.627574,0.00030707,7]
[344494273,1733514645631,-3486.627574,0.00030707,7]
[344494274,1733514645640,-3486.627574,0.00030707,7]
[344494275,1733514645651,-3486.627574,0.00030707,7]
[344494276,1733514645660,-3486.627574,0.00030707,7]
[344494277,1733514645669,-3486.627574,0.00030707,7]
[344494278,1733514645679,-3486.627576,0.00030707,7]
[344494279,1733514645688,-21915.69020186,0.00030709,2]
[344494280,1733514645698,-491.05954255,0.00030709,2]
[344494281,1733514645708,-151.0,0.00030709,7]
[344494282,1733514645718,-151.0,0.00030709,7]
[344494283,1733514645728,-151.0,0.00030709,7]
[344494284,1733514645738,-151.0,0.00030709,7]
[344494285,1733514645747,-151.0,0.00030709,7]
[344494286,1733514645757,-151.0,0.00030709,7]
[344494287,1733514645766,-151.0,0.00030709,7]
[344494288,1733514645775,-151.0,0.00030709,7]
[344494289,1733514645785,-151.0,0.00030709,7]
[344494290,1733514645795,-151.0,0.00030709,7]
[344494291,1733514645806,-151.0,0.00030709,7]
[344494292,1733514645815,-151.0,0.00030709,7]
[344494293,1733514645825,-151.0,0.00030709,7]
[344494294,1733514645835,-151.0,0.00030709,7]
[344494295,1733514645845,-151.0,0.00030709,7]
[344494296,1733514645854,-151.0,0.00030709,7]
[344494297,1733514645864,-151.0,0.00030709,7]
[344494299,1733514645874,-267.766704,0.00030709,7]
[344494300,1733514645883,-2113.84862051,0.00030709,30]
[344494302,1733514645893,-1048.64510173,0.00030709,120]
[344494304,1733514645904,-787.91625475,0.00030709,2]
[344494306,1733514645914,-1525517.49031076,0.00030709,10]
[344494308,1733514645923,-313869.20441646,0.00030709,10]
[344494310,1733514646358,-15762.010823,0.00030709,10]
[344494311,1733514646370,-255.84500219,0.00030709,10]
[344494312,1733514646502,-19999.69668,0.00030709,10]
[344494313,1733514813804,259.741428,0.00013973,2]
[344494315,1733515447218,255.387325,0.00013973,2]
[344494316,1733515480677,0.14214985,0.0002955,120]
[344494317,1733515531320,-255.387325,0.00020447,2]
[344494318,1733515531341,-300.0,0.00024999,2]
[344494319,1733515531365,-300.0,0.00024999,2]
[344494320,1733515531389,-1777.85509491,0.00025,2]
[344494321,1733515653142,-184.92335538,0.00024999,2]
[344494322,1733515747112,-300.0,0.00024999,2]
[344494323,1733515747132,-300.0,0.00024999,2]
[344494324,1733515747152,-2371.51599528,0.00025,2]
[344494325,1733515763145,-511.28799745,0.00025,2]
[344494326,1733515768155,-13673.58939717,0.00025,2]
[344494327,1733515768176,-3841.0,0.00025,2]
[344494328,1733515768199,-660.0,0.00026763,2]
[344494329,1733515768220,-255.387325,0.00026921,2]
[344494330,1733515768241,-420.0,0.00027082,2]
[344494336,1733515832256,-500.0,0.00027397,2]
[344494337,1733515832266,-182.676157,0.00027777,2]
[344494338,1733515832275,-168.699536,0.00028562,2]
[344494339,1733515832285,-300.0,0.00028729,2]
[344494340,1733515832294,-300.0,0.00028729,2]
[344494341,1733515832303,-4021.84355675,0.0002873,2]
[344494342,1733515832314,-355.5,0.0002873,2]
[344494343,1733515832326,-9696.19739876,0.0002873,2]
[344494405,1733515838032,-237.987596,0.00027825,2]
[344494407,1733515838042,-1588.474519,0.0002873,2]
[344494418,1733515839970,-9237.98452549,0.0002873,2]
[344494419,1733515839980,-500.0,0.00028767,5]
[344494420,1733515839989,-182.342812,0.00028779,2]
[344494421,1733515840002,-207.8129232,0.0002907,2]
[344494422,1733515840011,-947.50688048,0.0002907,2]
[344494423,1733515840021,-153.0,0.00029698,2]
[344494424,1733515840030,-605.87556014,0.00029741,2]
[344494425,1733515840039,-6921.72550675,0.0002975,120]
[344494426,1733515840048,-446.7283525,0.00029841,30]
[344494427,1733515840057,-350.9401695,0.00029841,30]
[344494428,1733515840067,-350.9401695,0.00029841,30]
[344494429,1733515840076,-350.9401695,0.00029841,30]
[344494430,1733515840085,-605.87556014,0.00029866,2]
[344494431,1733515840095,-605.87556014,0.0002999,2]
[344494432,1733515840104,-150.0,0.0003,2]
[344494433,1733515840114,-155.23079153,0.00030049,2]
[344494434,1733515840124,-1988.011988,0.000301,2]
[344494435,1733515840253,-327.0,0.000301,14]
[344494436,1733515840266,-608.23643012,0.00030136,7]